Workbook

Sheet Guide for LAs
B2: How to complete the template (guidance for local authorities)
B4: Which projects do I enter information about?
B5: The template is for local authorities to show local groups how they plan to invest in capital projects to get good outcomes for pupils with education, health and care (EHC) plans for their special educational need or disability.
B7: The template should include:
B9: All capital projects at a range of provision including mainstream and special schools designed to create new (additional) places, build new facilities or improve existing facilities to benefit pupils with EHC plans. This includes investment in mainstream and special provision for children and young people aged 0-25.
B10: This must include capital projects funded fully or partially through the special provision fund allocation
B11: This may include expenditure on capital projects funded via other funding (where applicable) up until the financial year 2020/21.
B13: The template should not include whole new centrally-funded free schools. Money from the special provision capital fund cannot be spent on revenue (i.e. staffing costs and training) and revenue expenditure should not be included on the form.
B15: The local authority should not enter costings for any project where this constitutes commercially sensitive information, for example, if contracts have not yet been tendered. The local authority may choose to set out indicative costings and mark this in the comments box. Where all costs are not entered when the plan is first published the local authority should republish the plan once costs can be included.
B18: There are two forms to complete on the 'input form' tab
B19: 1. Project information form | C19: Complete this for each project
B20: 2. Consultation form | C20: Complete this for each group you have consulted about any of the projects. This table must include information about how you have consulted parents and carers.
B21: If you find that you need to enter more rows of information please press the 'Click here if you would like to add a new row' button.
B23: How to enter information:
B25: Click 'Enable content' at the top of the form.
B27: Information about overall funding
B29: All information is entered into the 'input form' tab. The information you enter here generates your local authority's plan output.
B30: Select your local authority from the drop-down list at cell E3 'Select Local Authority'.
B31: The amount your local authority will receive from the special provision fund will be automatically added to the cell E5.
B32: In cell E6 [if applicable] enter any other funding that your LA plans to invest in new (additional) places or improvements to facilities for pupils with EHCs plans up until and including for the financial year 2020/21.
B33: In cell L3 enter the date of the last update (today's date).
B35: Information about individual projects
B37: Each project should be entered into the input form. This includes both investment in additional places and investment in facilities in all provision types.
B40: For all projects enter the following information:
B41: Provision URN (column B) | C41: Please enter the URN of the provision (i.e. school, college or other provision) that the project is based at. If the funding is used towards provision that has not yet been built and therefore does not have a URN please leave this cell blank.
B42: Provision name and address (column C) | C42: Enter provision name and address including postcode. If school covers more than one site please enter the address of the site that the project will be located at.
B43: Provision category (column D) | C43: Select provision type from drop-down box. (See a full list at the end of this form showing how provision types are categorised). Select 'other' if provision type is not listed and add further information in the comments box at column N 'Optional additional information'.
B44: Ofsted judgement (column E) | C44: Select from drop-down list the school's Ofsted grading at its last inspection before this plan is published or updated. The grade for special units should be listed as the Ofsted grading of the school.
B45: Age range for project (column F) | C45: Select from drop-down list the age range that the new places or the facilities' improvements are for.
B47: For investment in new (additional) places | C47: Please complete the following column(s) where the project involves creating new school places (adding to the number of places the school can provide)
B48: Special provision fund investment in additional places (column G) | C48: Enter how much the LA plans to invest in new places with funding from the special provision fund
B49: Other investment in additional places (column H) | C49: Where applicable enter how much the LA plans to invest in new places with any other funding.
B50: Special provision fund additional places (column I) | C50: Enter the number of places you plan to create from special provision funding for this project. Where additional places have been created using a combination of the special provision fund and other funding please estimate how many places have been created from each.
B51: Other investment additional places (column J) | C51: Enter the number of places you plan to create from other funding for this project.
B52: Total number of places (column K) | C52: Enter the total number of places that the investment in additional places will create (this should be the same as column I plus column J).
B54: For investment in facilities | C54: Please complete the following column(s) where the project involves improving facilities at the school
B55: Special provision fund investment in facilities (column L) | C55: Enter how much the LA plans to invest in improvements to facilities with money from the special provision fund.
B56: Other investment in facilities (column M) | C56: Where applicable enter how much the LA plans to invest in improvements to facilities with any other funding.
B57: Projects should cover either one or both of the objectives (investment in additional places and/or improvements to facilities). Where projects cover both aims please estimate how much funding will be or is used for additional places and how much goes to improving facilities.
B59: Additional information for each project
B60: Type of SEN or disability that the project is designed to meet (column N) | C60: Please enter information about the needs of the pupils that you plan to create additional places and/or improve facilities for. This could be general, or state specific needs depending upon the purpose of the project and the intake of the school.
B61: Additional information about each project (column O) | C61: Enter additional information about the aims of the project. This should include a short explanation of how this fits into the wider strategic plan. This might also include, for example, a brief explanation of which facilities the LA plans to improve.
B62: Local authorities should create a link to their wider strategic plan. They can include refer to more detailed information about specific projects by linking to documents that they publish on their website. This might include a consultation document or further details about the project.
B65: Required information about consultation
B66: Local authorities are required to consult parents and carers about their plans and they should consult other groups. They need to do this before they receive their allocation and list the groups consulted. They can also publish the plan before they have consulted and re-publish afterwards making any changes if required. Information needs to be set out in the consultation table that is below the project table on the input form.
B67: Column B (Group) | C67: Enter the type of group consulted and/or the group's name. For example, local parent group, VCS organisation or school.
B68: Column D (date and method of discussion) | C68: This should include whether and when meetings took place or if consultation took place via other means i.e. via email.
B69: Column F (Topic(s) of discussion) | C69: Include a summary of what the conversation was about.
B70: Column N (Outcome including any changes as a result of the conversation) | C70: Explain what points were agreed, what decisions or actions came out of the discussion, and what (if any) changes were, or will be made to plans.
B71: Other information
B72: Password: provision1 | C72: The purpose of the password is to unlock tabs or sheets that show how the spreadsheet works. You do not need to use the password to complete the spreadsheet.

Sheet Input form
B1: Special provision plan
B2: Input form for Local Authority to complete
B4: Local authority | E4: SELECT LOCAL AUTHORITY | J4: Date of last update
B6: Local authority's special provision fund allocation | E6: =INDEX('Do not change - workings'!Y:Y,MATCH(E4,'Do not change - workings'!R:R, 0)) -> 0 | H6: Total planned expenditure on projects: special provision fund | L6: =SUM(InputForm[Special provision fund investment in additional places],InputForm[Special provision fund investment in facilities]) -> 0 | O6: =IF(L6>E6,"Error: Exceeded funding: Special provision spend columns H and M should not exceed total amount in cell F6","") -> 
B7: Other investment the local authority plans to make in SEND capital up until 2021 | H7: Total planned expenditure on projects: other funding up until 2021 | L7: =SUM(InputForm[Other investment in additional places],InputForm[Other investment in facilities]) -> 0 | O7: =IF(L7>E7,"Error: Exceeded funding: Other investment columns H and M should not exceed total amount in cell F7","") -> 
B9: The local authority is required to consult parents and carers to receive their allocation. Local authorities should use the box to the right to confirm that they have consulted with parents and carers about their plan and projects and complete the 'Consultation form' below. | J9: Confirm either that the LA has or will be consulting parents and carers
B11: Project information form
B12: Provision | G12: Investment in additional places (£) | I12: Number of additional places | L12: Investment in facilities (£) | N12: Total (£) | O12: Additional Information about each project
B13: Provision URN | C13: Provision name and address | D13: Provision category | E13: Ofsted Judgement | F13: Age range for project | G13: Special provision fund investment in additional places | H13: Other investment in additional places | I13: Special provision fund additional planned places | J13: Other investment additional planend places | K13: Total additional planned places | L13: Special provision fund investment in facilities | M13: Other investment in facilities | N13: Total investment in project | O13: Type of SEN or disability that project is designed to meet. | P13: LAs should use this section of the table to set out more details about the aims of the project. Beyond this further information can be listed in their strategic plan or directly on their local offer page.
K14: =SUM(InputForm[[#This Row],[Special provision fund additional planned places]:[Other investment additional planend places]]) -> 0 | N14: =SUM(G14:H14,L14:M14) -> 0
K15: =SUM(InputForm[[#This Row],[Special provision fund additional planned places]:[Other investment additional planend places]]) -> 0 | N15: 0
K16: =SUM(InputForm[[#This Row],[Special provision fund additional planned places]:[Other investment additional planend places]]) -> 0 | N16: 0
K17: =SUM(InputForm[[#This Row],[Special provision fund additional planned places]:[Other investment additional planend places]]) -> 0 | N17: 0
K18: =SUM(InputForm[[#This Row],[Special provision fund additional planned places]:[Other investment additional planend places]]) -> 0 | N18: =SUM(G18:H18,L18:M18) -> 0
B21: Consultation form Consultation for all projects: list the groups that the local authority has consulted with and the date of the conversation. Local authorities are required to consult with parents and carers and should consult with other groups about how they plan to use their funding and set out information in the box below before they will receive their allocation.
B22: Group | D22: Date and method of discussion i.e. meeting or online consultation | F22: Topic(s) of discussion | O22: Outcome including any changes as a result of the consultation

Sheet Plan output
B1: ='Input form'!E4 -> SELECT LOCAL AUTHORITY
B3: Special provision fund capital plan | G3: Total planned investment in additional places | H3: =H6+H9 -> 0 | I3: Total planned investment to improve existing schools' facilities | J3: =J6+J9 -> 0
G4: Total planned number of additional places | H4: =H7+H10 -> 0 | I4: Total planned number of improvement projects | J4: =J7+J10 -> 0
B6: Special provision fund allocation | C6: ='Input form'!E6 -> 0 | G6: £s investment for planned additional places | H6: =SUM(InputForm[Special provision fund investment in additional places]) -> 0 | I6: £s investment in facilities | J6: =SUM(InputForm[Special provision fund investment in facilities]) -> 0
G7: No. of additional places planned | H7: =SUM(InputForm[Special provision fund additional planned places]) -> 0 | I7: No. of facilities improvement projects | J7: =COUNTIFS(InputForm[Special provision fund investment in facilities],">0") -> 0
B9: Other funding other than the SEND capital allocation (where applicable) | C9: ='Input form'!E7 -> 0 | G9: £s investment for planned additional places | H9: =SUM(InputForm[Other investment in additional places]) -> 0 | I9: £s investment in facilities | J9: =SUM(InputForm[Other investment in facilities]) -> 0
G10: No. of additional places planned | H10: =SUM(InputForm[Other investment additional planend places]) -> 0 | I10: No. of facilities improvement projects | J10: =COUNTIFS(InputForm[Other investment in facilities],">0") -> 0
B12: More information about investment in provision for pupils with education, health and care (EHC) plans up until 2021

Sheet Do not change - workings
B1: Spreadsheet workings | L1: Provision | R1: Allocations | S1: Copied from https://www.gov.uk/government/publications/send-provision-capital-funding-for-pupils-with-ehc-plans at 20 March 2017
B2: Local authority: | F2: ='Input form'!E4 -> SELECT LOCAL AUTHORITY | Q2: Special provision fund: Allocation for local authorities from 2018/19 to 2020/21
B3: =F2 -> SELECT LOCAL AUTHORITY | L3: Spreadsheet workings: Codes | Q3: Published March 2017
L4: Lists of categories | Q4: Published March 2017 Updated January 2019 | AB4: Consultation
B5: Local authority's special provision fund allocation | F5: =INDEX(V:V,MATCH(F2,R:R, 0)) -> 0 | L5: Groups to select from | M5: Sub-groups | O5: Ofsted inspection judgment | Q5: LA Number | R5: Local Authority name | S5: 2018/19 | T5: 2019/20 | U5: 2020/21 | V5: LAs total allocation | W5: £50m top-up announced May 2018 | X5: £100m top-up announced December 2018 | Y5: New total allocation | AB5: The local authority has consulted parents and carers
B6: Other investment the local authority plans to make in SEND capital | F6: =SUM('Input form'!H14:H18)+SUM('Input form'!M14:M18) -> 0 | L6: Provision category | M6: Provision type | O6: Outstanding | AB6: The local authority is or will be consulting parents and carers and will republish this plan before receiving their allocation
L7: Alternative provision/PRU | M7: Academy (or free school) Alternative provision | O7: Good | R7: Totals | S7: 71666666.67 | T7: 71666666.67 | U7: 71666666.67 | V7: 215000000 | W7: =V7*(50/215) -> 50000000 | X7: 100000000 | Y7: 365000000 | AB7: Confirm either that the LA has or will be consulting parents and carers
B8: Investment by quality | M8: Pupil referral unit (LA maintained) | O8: Requires Improvement | R8: SELECT LOCAL AUTHORITY
C9: Investment in new places | E9: Investment in facilities improvements | H9: No. of places created from: | J9: Places | L9: Independent and non-maintained | M9: Independent school | O9: Inadequate | Q9: 301 | R9: Barking and Dagenham | S9: 945715.6047 | T9: 945715.6047 | U9: 945715.6047 | V9: 2837146.814 | W9: =V9*(50/215) -> 659801.5847 | X9: =V9*(100/215) -> 1319603.169 | Y9: =V9+W9+X9 -> 4816551.568 | AB9: Limits set on cells
B10: Quality (Ofsted rating) | C10: Special provision fund | D10: Other investment | E10: Special provision fund | F10: Other investment | G10: Total investment | H10: Special provision fund | I10: Other investment | J10: Total no. new places planned | M10: Non-Maintained Special School | O10: Not yet inspected | Q10: 302 | R10: Barnet | S10: 1001778.281 | T10: 1001778.281 | U10: 1001778.281 | V10: 3005334.842 | W10: =V10*(50/215) -> 698915.0796 | X10: =V10*(100/215) -> 1397830.159 | Y10: =V10+W10+X10 -> 5102080.081 | AB10: Input form, project information form: rows I and J have an entry limit of 200 places
B11: outstanding | C11: =SUMIF(InputForm[Ofsted Judgement],$B11,InputForm[Special provision fund investment in additional places]) -> 0 | D11: =SUMIF(InputForm[Ofsted Judgement],$B11,InputForm[Other investment in additional places]) -> 0 | E11: =SUMIF(InputForm[Ofsted Judgement],$B11,InputForm[Special provision fund investment in facilities]) -> 0 | F11: =SUMIF(InputForm[Ofsted Judgement],$B11,InputForm[Other investment in facilities]) -> 0 | G11: =SUM(E11:F11) -> 0 | H11: =SUMIF(InputForm[Ofsted Judgement],$B11,InputForm[Special provision fund additional planned places]) -> 0 | I11: =SUMIF(InputForm[Ofsted Judgement],$B11,InputForm[Other investment additional planend places]) -> 0 | J11: =SUM(H11:I11) -> 0 | M11: Other independent special school | O11: Not inspected by Ofsted | Q11: 370 | R11: Barnsley | S11: 260425.4536 | T11: 260425.4536 | U11: 260425.4536 | V11: 781276.3608 | W11: 181692.1769 | X11: 363384.3538 | Y11: 1326352.892 | AB11: Input form, project information form: row L has an expenditure limit of the selected special provision fund allocation i.e. the LA cannot invest more special provision fund money that it will receive
B12: good | C12: =SUMIF(InputForm[Ofsted Judgement],$B12,InputForm[Special provision fund investment in additional places]) -> 0 | D12: =SUMIF(InputForm[Ofsted Judgement],$B12,InputForm[Other investment in additional places]) -> 0 | E12: =SUMIF(InputForm[Ofsted Judgement],$B12,InputForm[Special provision fund investment in facilities]) -> 0 | F12: =SUMIF(InputForm[Ofsted Judgement],$B12,InputForm[Other investment in facilities]) -> 0 | G12: 0 | H12: =SUMIF(InputForm[Ofsted Judgement],$B12,InputForm[Special provision fund additional planned places]) -> 0 | I12: =SUMIF(InputForm[Ofsted Judgement],$B12,InputForm[Other investment additional planend places]) -> 0 | J12: =SUM(H12:I12) -> 0 | L12: Mainstream provision (not unit) | M12: Academy (or free school) 16-19 (mainstream) | Q12: 800 | R12: Bath and North East Somerset | S12: 192331.3817 | T12: 192331.3817 | U12: 192331.3817 | V12: 576994.1452 | W12: 134184.6849 | X12: 268369.3699 | Y12: 979548.2 | AB12: Input form, project information form: row J has an expenditure limit of the entered figure for other investment i.e. the LA cannot type that they will invest more in one project than the total sum of their expenditure
B13: requires improvement | C13: =SUMIF(InputForm[Ofsted Judgement],$B13,InputForm[Special provision fund investment in additional places]) -> 0 | D13: =SUMIF(InputForm[Ofsted Judgement],$B13,InputForm[Other investment in additional places]) -> 0 | E13: =SUMIF(InputForm[Ofsted Judgement],$B13,InputForm[Special provision fund investment in facilities]) -> 0 | F13: =SUMIF(InputForm[Ofsted Judgement],$B13,InputForm[Other investment in facilities]) -> 0 | G13: 0 | H13: =SUMIF(InputForm[Ofsted Judgement],$B13,InputForm[Special provision fund additional planned places]) -> 0 | I13: =SUMIF(InputForm[Ofsted Judgement],$B13,InputForm[Other investment additional planend places]) -> 0 | J13: 0 | M13: Academy or free school (mainstream) | Q13: 822 | R13: Bedford | S13: 309620.2426 | T13: 309620.2426 | U13: 309620.2426 | V13: 928860.7279 | W13: 216014.1228 | X13: 432028.2456 | Y13: 1576903.096 | AB13: Input form, L7: Conditional formatting if rows
B14: inadequate | C14: =SUMIF(InputForm[Ofsted Judgement],$B14,InputForm[Special provision fund investment in additional places]) -> 0 | D14: =SUMIF(InputForm[Ofsted Judgement],$B14,InputForm[Other investment in additional places]) -> 0 | E14: =SUMIF(InputForm[Ofsted Judgement],$B14,InputForm[Special provision fund investment in facilities]) -> 0 | F14: =SUMIF(InputForm[Ofsted Judgement],$B14,InputForm[Other investment in facilities]) -> 0 | G14: 0 | H14: =SUMIF(InputForm[Ofsted Judgement],$B14,InputForm[Special provision fund additional planned places]) -> 0 | I14: =SUMIF(InputForm[Ofsted Judgement],$B14,InputForm[Other investment additional planend places]) -> 0 | J14: 0 | M14: Maintained school (including community, foundation school) | Q14: 303 | R14: Bexley | S14: 684008.2385 | T14: 684008.2385 | U14: 684008.2385 | V14: 2052024.715 | W14: 477215.0501 | X14: 954430.1002 | Y14: 3483669.866 | AB14: Input form, project information form: Word limits of 200 characters to row O
B15: not yet inspected | C15: =SUMIF(InputForm[Ofsted Judgement],$B15,InputForm[Special provision fund investment in additional places]) -> 0 | D15: =SUMIF(InputForm[Ofsted Judgement],$B15,InputForm[Other investment in additional places]) -> 0 | E15: =SUMIF(InputForm[Ofsted Judgement],$B15,InputForm[Special provision fund investment in facilities]) -> 0 | F15: =SUMIF(InputForm[Ofsted Judgement],$B15,InputForm[Other investment in facilities]) -> 0 | G15: 0 | H15: =SUMIF(InputForm[Ofsted Judgement],$B15,InputForm[Special provision fund additional planned places]) -> 0 | I15: =SUMIF(InputForm[Ofsted Judgement],$B15,InputForm[Other investment additional planend places]) -> 0 | J15: 0 | M15: LA nursery school | Q15: 330 | R15: Birmingham | S15: 1423958.491 | T15: 1423958.491 | U15: 1423958.491 | V15: 4271875.472 | W15: 993459.4121 | X15: 1986918.824 | Y15: 7252253.708 | AB15: Input form, project information form: Word limits of 600 characters to row P
B16: not inspected by Ofsted | C16: =SUMIF(InputForm[Ofsted Judgement],$B16,InputForm[Special provision fund investment in additional places]) -> 0 | D16: =SUMIF(InputForm[Ofsted Judgement],$B16,InputForm[Other investment in additional places]) -> 0 | E16: =SUMIF(InputForm[Ofsted Judgement],$B16,InputForm[Special provision fund investment in facilities]) -> 0 | F16: =SUMIF(InputForm[Ofsted Judgement],$B16,InputForm[Other investment in facilities]) -> 0 | G16: 0 | H16: =SUMIF(InputForm[Ofsted Judgement],$B16,InputForm[Special provision fund additional planned places]) -> 0 | I16: =SUMIF(InputForm[Ofsted Judgement],$B16,InputForm[Other investment additional planend places]) -> 0 | J16: 0 | M16: Studio school | Q16: 889 | R16: Blackburn with Darwen | S16: 166666.6667 | T16: 166666.6667 | U16: 166666.6667 | V16: 500000 | W16: 116279.0698 | X16: 232558.1395 | Y16: 848837.2093 | AB16: Input form, consultation form: Word limits of 200 characters to row B
B17: Total | C17: =SUM(C11:C16) -> 0 | D17: 0 | E17: 0 | F17: 0 | G17: 0 | H17: 0 | I17: 0 | J17: 0 | M17: University technical college | Q17: 890 | R17: Blackpool | S17: 166666.6667 | T17: 166666.6667 | U17: 166666.6667 | V17: 500000 | W17: 116279.0698 | X17: 232558.1395 | Y17: 848837.2093 | AB17: Input form, consultation form: Word limits of 200 characters to row D
L18: Special provision | M18: Academy (or free school) special | Q18: 350 | R18: Bolton | S18: 275943.4841 | T18: 275943.4841 | U18: 275943.4841 | V18: 827830.4523 | W18: 192518.7098 | X18: 385037.4197 | Y18: 1405386.582 | AB18: Input form, consultation form: Word limits of 600 characters to row F
B19: Investment by provision type | M19: Maintained special school (including community and foundations schools) | Q19: 837 | R19: Bournemouth | S19: 317883.4214 | T19: 317883.4214 | U19: 317883.4214 | V19: 953650.2641 | W19: 221779.1312 | X19: 443558.2624 | Y19: 1618987.658 | AB19: Input form, consultation form: Word limits of 600 characters to row N
C20: Investment in new places | E20: Investment in facilities improvements | H20: No. of places created from: | J20: Places | L20: Special unit or resourced provision | M20: Special unit/ resourced provision at academy | Q20: 867 | R20: Bracknell Forest | S20: 250926.9322 | T20: 250926.9322 | U20: 250926.9322 | V20: 752780.7965 | W20: 175065.3015 | X20: 350130.603 | Y20: 1277976.701
B21: Provision type | C21: Special provision fund | D21: Other investment | E21: Special provision fund | F21: Other investment | G21: Total investment | H21: Special provision fund | I21: Other investment | J21: Total no. new places planned | M21: Special unit/ resourced provision at free school | Q21: 380 | R21: Bradford | S21: 219322.2522 | T21: 219322.2522 | U21: 219322.2522 | V21: 657966.7565 | W21: 153015.5248 | X21: 306031.0495 | Y21: 1117013.331
B22: =L30 -> Alternative provision/PRU | C22: =SUMIF(InputForm[Provision category],$B22,InputForm[Special provision fund investment in additional places]) -> 0 | D22: =SUMIF(InputForm[Provision category],$B22,InputForm[Other investment in additional places]) -> 0 | E22: =SUMIF(InputForm[Provision category],$B22,InputForm[Special provision fund investment in facilities]) -> 0 | F22: =SUMIF(InputForm[Provision category],$B22,InputForm[Other investment in facilities]) -> 0 | G22: =SUM(E22:F22) -> 0 | H22: =SUMIF(InputForm[Provision category],$B22,InputForm[Special provision fund additional planned places]) -> 0 | I22: =SUMIF(InputForm[Provision category],$B22,InputForm[Other investment additional planend places]) -> 0 | J22: =SUM(H22:I22) -> 0 | M22: Special unit/ resourced provision at other school | Q22: 304 | R22: Brent | S22: 569221.9775 | T22: 569221.9775 | U22: 569221.9775 | V22: 1707665.933 | W22: 397131.6122 | X22: 794263.2245 | Y22: 2899060.769
B23: Independent and non-maintained | C23: =SUMIF(InputForm[Provision category],$B23,InputForm[Special provision fund investment in additional places]) -> 0 | D23: =SUMIF(InputForm[Provision category],$B23,InputForm[Other investment in additional places]) -> 0 | E23: =SUMIF(InputForm[Provision category],$B23,InputForm[Special provision fund investment in facilities]) -> 0 | F23: =SUMIF(InputForm[Provision category],$B23,InputForm[Other investment in facilities]) -> 0 | G23: 0 | H23: =SUMIF(InputForm[Provision category],$B23,InputForm[Special provision fund additional planned places]) -> 0 | I23: =SUMIF(InputForm[Provision category],$B23,InputForm[Other investment additional planend places]) -> 0 | J23: 0 | L23: Other | M23: Other school | Q23: 846 | R23: Brighton and Hove | S23: 166666.6667 | T23: 166666.6667 | U23: 166666.6667 | V23: 500000 | W23: 116279.0698 | X23: 232558.1395 | Y23: 848837.2093
B24: Mainstream provision (not unit) | C24: =SUMIF(InputForm[Provision category],$B24,InputForm[Special provision fund investment in additional places]) -> 0 | D24: =SUMIF(InputForm[Provision category],$B24,InputForm[Other investment in additional places]) -> 0 | E24: =SUMIF(InputForm[Provision category],$B24,InputForm[Special provision fund investment in facilities]) -> 0 | F24: =SUMIF(InputForm[Provision category],$B24,InputForm[Other investment in facilities]) -> 0 | G24: 0 | H24: =SUMIF(InputForm[Provision category],$B24,InputForm[Special provision fund additional planned places]) -> 0 | I24: =SUMIF(InputForm[Provision category],$B24,InputForm[Other investment additional planend places]) -> 0 | J24: 0 | M24: Other nursery or early years provision | Q24: 801 | R24: Bristol, City of | S24: 840521.7334 | T24: 840521.7334 | U24: 840521.7334 | V24: 2521565.2 | W24: 586410.5117 | X24: 1172821.023 | Y24: 4280796.735
B25: Special provision | C25: =SUMIF(InputForm[Provision category],$B25,InputForm[Special provision fund investment in additional places]) -> 0 | D25: =SUMIF(InputForm[Provision category],$B25,InputForm[Other investment in additional places]) -> 0 | E25: =SUMIF(InputForm[Provision category],$B25,InputForm[Special provision fund investment in facilities]) -> 0 | F25: =SUMIF(InputForm[Provision category],$B25,InputForm[Other investment in facilities]) -> 0 | G25: 0 | H25: =SUMIF(InputForm[Provision category],$B25,InputForm[Special provision fund additional planned places]) -> 0 | I25: =SUMIF(InputForm[Provision category],$B25,InputForm[Other investment additional planend places]) -> 0 | J25: 0 | M25: Other sixth-form or FE college | Q25: 305 | R25: Bromley | S25: 865509.8549 | T25: 865509.8549 | U25: 865509.8549 | V25: 2596529.565 | W25: 603844.0848 | X25: 1207688.17 | Y25: 4408061.819
B26: Special unit or resourced provision | C26: =SUMIF(InputForm[Provision category],$B26,InputForm[Special provision fund investment in additional places]) -> 0 | D26: =SUMIF(InputForm[Provision category],$B26,InputForm[Other investment in additional places]) -> 0 | E26: =SUMIF(InputForm[Provision category],$B26,InputForm[Special provision fund investment in facilities]) -> 0 | F26: =SUMIF(InputForm[Provision category],$B26,InputForm[Other investment in facilities]) -> 0 | G26: 0 | H26: =SUMIF(InputForm[Provision category],$B26,InputForm[Special provision fund additional planned places]) -> 0 | I26: =SUMIF(InputForm[Provision category],$B26,InputForm[Other investment additional planend places]) -> 0 | J26: 0 | Q26: 825 | R26: Buckinghamshire | S26: 824492.3526 | T26: 824492.3526 | U26: 824492.3526 | V26: 2473477.058 | W26: 575227.2227 | X26: 1150454.445 | Y26: 4199158.726
B27: Other | C27: =SUMIF(InputForm[Provision category],$B27,InputForm[Special provision fund investment in additional places]) -> 0 | D27: =SUMIF(InputForm[Provision category],$B27,InputForm[Other investment in additional places]) -> 0 | E27: =SUMIF(InputForm[Provision category],$B27,InputForm[Special provision fund investment in facilities]) -> 0 | F27: =SUMIF(InputForm[Provision category],$B27,InputForm[Other investment in facilities]) -> 0 | G27: 0 | H27: =SUMIF(InputForm[Provision category],$B27,InputForm[Special provision fund additional planned places]) -> 0 | I27: =SUMIF(InputForm[Provision category],$B27,InputForm[Other investment additional planend places]) -> 0 | J27: 0 | Q27: 351 | R27: Bury | S27: 194899.4639 | T27: 194899.4639 | U27: 194899.4639 | V27: 584698.3918 | W27: 135976.3702 | X27: 271952.7404 | Y27: 992627.5023
B28: Total | C28: =SUM(C22:C27) -> 0 | D28: 0 | E28: 0 | F28: 0 | G28: 0 | H28: 0 | I28: 0 | J28: 0 | Q28: 381 | R28: Calderdale | S28: 166666.6667 | T28: 166666.6667 | U28: 166666.6667 | V28: 500000 | W28: 116279.0698 | X28: 232558.1395 | Y28: 848837.2093
L29: Provision category | Q29: 873 | R29: Cambridgeshire | S29: 832763.4242 | T29: 832763.4242 | U29: 832763.4242 | V29: 2498290.273 | W29: 580997.7378 | X29: 1161995.476 | Y29: 4241283.486
L30: Alternative provision/PRU | Q30: 202 | R30: Camden | S30: 437500.276 | T30: 437500.276 | U30: 437500.276 | V30: 1312500.828 | W30: 305232.7507 | X30: 610465.5013 | Y30: 2228199.08
L31: Independent and non-maintained | Q31: 823 | R31: Central Bedfordshire | S31: 549726.9184 | T31: 549726.9184 | U31: 549726.9184 | V31: 1649180.755 | W31: 383530.4082 | X31: 767060.8164 | Y31: 2799771.98
L32: Mainstream provision (not unit) | Q32: 895 | R32: Cheshire East | S32: 197896.6424 | T32: 197896.6424 | U32: 197896.6424 | V32: 593689.9273 | W32: 138067.4249 | X32: 276134.8499 | Y32: 1007892.202
L33: Special provision | Q33: 896 | R33: Cheshire West and Chester | S33: 180458.823 | T33: 180458.823 | U33: 180458.823 | V33: 541376.469 | W33: 125901.5044 | X33: 251803.0088 | Y33: 919080.9823
L34: Special unit or resourced provision | Q34: 908 | R34: Cornwall | S34: 637771.8063 | T34: 637771.8063 | U34: 637771.8063 | V34: 1913315.419 | W34: 444957.0742 | X34: 889914.1484 | Y34: 3248186.642
L35: Other | Q35: 840 | R35: County Durham | S35: 430929.7091 | T35: 430929.7091 | U35: 430929.7091 | V35: 1292789.127 | W35: 300648.6343 | X35: 601297.2686 | Y35: 2194735.03
Q36: 331 | R36: Coventry | S36: 775574.3906 | T36: 775574.3906 | U36: 775574.3906 | V36: 2326723.172 | W36: 541098.412 | X36: 1082196.824 | Y36: 3950018.408
Q37: 306 | R37: Croydon | S37: 968854.5919 | T37: 968854.5919 | U37: 968854.5919 | V37: 2906563.776 | W37: 675945.0641 | X37: 1351890.128 | Y37: 4934398.968
L38: Age range | Q38: 909 | R38: Cumbria | S38: 166666.6667 | T38: 166666.6667 | U38: 166666.6667 | V38: 500000 | W38: 116279.0698 | X38: 232558.1395 | Y38: 848837.2093
L39: Under 5s | Q39: 841 | R39: Darlington | S39: 166666.6667 | T39: 166666.6667 | U39: 166666.6667 | V39: 500000 | W39: 116279.0698 | X39: 232558.1395 | Y39: 848837.2093
L40: Primary | Q40: 831 | R40: Derby | S40: 275162.2304 | T40: 275162.2304 | U40: 275162.2304 | V40: 825486.6913 | W40: 191973.6491 | X40: 383947.2983 | Y40: 1401407.639
L41: Secondary | Q41: 830 | R41: Derbyshire | S41: 427606.3056 | T41: 427606.3056 | U41: 427606.3056 | V41: 1282818.917 | W41: 298329.9806 | X41: 596659.9613 | Y41: 2177808.859
L42: Primary and secondary | Q42: 878 | R42: Devon | S42: 749284.5139 | T42: 749284.5139 | U42: 749284.5139 | V42: 2247853.542 | W42: 522756.6376 | X42: 1045513.275 | Y42: 3816123.455
L43: Post-16 | Q43: 371 | R43: Doncaster | S43: 166666.6667 | T43: 166666.6667 | U43: 166666.6667 | V43: 500000 | W43: 116279.0698 | X43: 232558.1395 | Y43: 848837.2093
L44: Secondary and post-16 | Q44: 835 | R44: Dorset | S44: 338317.6113 | T44: 338317.6113 | U44: 338317.6113 | V44: 1014952.834 | W44: 236035.5427 | X44: 472071.0855 | Y44: 1723059.462
L45: Primary, secondary and post-16 | Q45: 332 | R45: Dudley | S45: 243843.3638 | T45: 243843.3638 | U45: 243843.3638 | V45: 731530.0914 | W45: 170123.2771 | X45: 340246.5542 | Y45: 1241899.923
L46: Other category in 0-25 age-range (please specify in project description) | Q46: 307 | R46: Ealing | S46: 480478.4384 | T46: 480478.4384 | U46: 480478.4384 | V46: 1441435.315 | W46: 335217.5151 | X46: 670435.0303 | Y46: 2447087.861
Q47: 811 | R47: East Riding of Yorkshire | S47: 166666.6667 | T47: 166666.6667 | U47: 166666.6667 | V47: 500000 | W47: 116279.0698 | X47: 232558.1395 | Y47: 848837.2093
Q48: 845 | R48: East Sussex | S48: 603659.2669 | T48: 603659.2669 | U48: 603659.2669 | V48: 1810977.801 | W48: 421157.628 | X48: 842315.2561 | Y48: 3074450.685
Q49: 308 | R49: Enfield | S49: 851655.2218 | T49: 851655.2218 | U49: 851655.2218 | V49: 2554965.665 | W49: 594178.0617 | X49: 1188356.123 | Y49: 4337499.851
Q50: 881 | R50: Essex | S50: 1916012.57 | T50: 1916012.57 | U50: 1916012.57 | V50: 5748037.709 | W50: 1336752.956 | X50: 2673505.911 | Y50: 9758296.576
Q51: 390 | R51: Gateshead | S51: 166666.6667 | T51: 166666.6667 | U51: 166666.6667 | V51: 500000 | W51: 116279.0698 | X51: 232558.1395 | Y51: 848837.2093
Q52: 916 | R52: Gloucestershire | S52: 650092.0215 | T52: 650092.0215 | U52: 650092.0215 | V52: 1950276.065 | W52: 453552.5731 | X52: 907105.1463 | Y52: 3310933.784
Q53: 203 | R53: Greenwich | S53: 680999.3698 | T53: 680999.3698 | U53: 680999.3698 | V53: 2042998.109 | W53: 475115.8394 | X53: 950231.6788 | Y53: 3468345.627
Q54: 204 | R54: Hackney | S54: 662722.2645 | T54: 662722.2645 | U54: 662722.2645 | V54: 1988166.793 | W54: 462364.3706 | X54: 924728.7411 | Y54: 3375259.905
Q55: 876 | R55: Halton | S55: 166666.6667 | T55: 166666.6667 | U55: 166666.6667 | V55: 500000 | W55: 116279.0698 | X55: 232558.1395 | Y55: 848837.2093
Q56: 205 | R56: Hammersmith and Fulham | S56: 166666.6667 | T56: 166666.6667 | U56: 166666.6667 | V56: 500000 | W56: 116279.0698 | X56: 232558.1395 | Y56: 848837.2093
Q57: 850 | R57: Hampshire | S57: 1262401.23 | T57: 1262401.23 | U57: 1262401.23 | V57: 3787203.69 | W57: 880745.0441 | X57: 1761490.088 | Y57: 6429438.822
Q58: 309 | R58: Haringey | S58: 212735.0729 | T58: 212735.0729 | U58: 212735.0729 | V58: 638205.2188 | W58: 148419.8183 | X58: 296839.6367 | Y58: 1083464.674
Q59: 310 | R59: Harrow | S59: 620575.7785 | T59: 620575.7785 | U59: 620575.7785 | V59: 1861727.336 | W59: 432959.8455 | X59: 865919.691 | Y59: 3160606.872
Q60: 805 | R60: Hartlepool | S60: 166666.6667 | T60: 166666.6667 | U60: 166666.6667 | V60: 500000 | W60: 116279.0698 | X60: 232558.1395 | Y60: 848837.2093
Q61: 311 | R61: Havering | S61: 857386.045 | T61: 857386.045 | U61: 857386.045 | V61: 2572158.135 | W61: 598176.3105 | X61: 1196352.621 | Y61: 4366687.066
Q62: 884 | R62: Herefordshire | S62: 166666.6667 | T62: 166666.6667 | U62: 166666.6667 | V62: 500000 | W62: 116279.0698 | X62: 232558.1395 | Y62: 848837.2093
Q63: 919 | R63: Hertfordshire | S63: 2197224.565 | T63: 2197224.565 | U63: 2197224.565 | V63: 6591673.696 | W63: 1532947.371 | X63: 3065894.742 | Y63: 11190515.81
Q64: 312 | R64: Hillingdon | S64: 971963.8466 | T64: 971963.8466 | U64: 971963.8466 | V64: 2915891.54 | W64: 678114.3116 | X64: 1356228.623 | Y64: 4950234.475
Q65: 313 | R65: Hounslow | S65: 721492.9364 | T65: 721492.9364 | U65: 721492.9364 | V65: 2164478.809 | W65: 503367.1649 | X65: 1006734.33 | Y65: 3674580.304
Q66: 921 | R66: Isle of Wight | S66: 166666.6667 | T66: 166666.6667 | U66: 166666.6667 | V66: 500000 | W66: 116279.0698 | X66: 232558.1395 | Y66: 848837.2093
Q67: 206 | R67: Islington | S67: 442448.5445 | T67: 442448.5445 | U67: 442448.5445 | V67: 1327345.634 | W67: 308685.0311 | X67: 617370.0621 | Y67: 2253400.727
Q68: 207 | R68: Kensington and Chelsea | S68: 166666.6667 | T68: 166666.6667 | U68: 166666.6667 | V68: 500000 | W68: 116279.0698 | X68: 232558.1395 | Y68: 848837.2093
Q69: 886 | R69: Kent | S69: 2192654.501 | T69: 2192654.501 | U69: 2192654.501 | V69: 6577963.504 | W69: 1529758.954 | X69: 3059517.909 | Y69: 11167240.37
Q70: 810 | R70: Kingston upon Hull, City of | S70: 233138.9532 | T70: 233138.9532 | U70: 233138.9532 | V70: 699416.8595 | W70: 162655.0836 | X70: 325310.1672 | Y70: 1187382.11
Q71: 314 | R71: Kingston upon Thames | S71: 562816.0355 | T71: 562816.0355 | U71: 562816.0355 | V71: 1688448.106 | W71: 392662.3503 | X71: 785324.7007 | Y71: 2866435.157
Q72: 382 | R72: Kirklees | S72: 352244.0831 | T72: 352244.0831 | U72: 352244.0831 | V72: 1056732.249 | W72: 245751.6859 | X72: 491503.3718 | Y72: 1793987.307
Q73: 340 | R73: Knowsley | S73: 166666.6667 | T73: 166666.6667 | U73: 166666.6667 | V73: 500000 | W73: 116279.0698 | X73: 232558.1395 | Y73: 848837.2093
Q74: 208 | R74: Lambeth | S74: 393908.8223 | T74: 393908.8223 | U74: 393908.8223 | V74: 1181726.467 | W74: =V74*(50/215) -> 274820.1086 | X74: =V74*(100/215) -> 549640.2172 | Y74: =V74+W74+X74 -> 2006186.793
Q75: 888 | R75: Lancashire | S75: 683199.6681 | T75: 683199.6681 | U75: 683199.6681 | V75: 2049599.004 | W75: 476650.9312 | X75: 953301.8625 | Y75: 3479551.798
Q76: 383 | R76: Leeds | S76: 1079028.73 | T76: 1079028.73 | U76: 1079028.73 | V76: 3237086.189 | W76: 752810.7416 | X76: 1505621.483 | Y76: 5495518.414
Q77: 856 | R77: Leicester | S77: 524722.9815 | T77: 524722.9815 | U77: 524722.9815 | V77: 1574168.944 | W77: 366085.801 | X77: 732171.6021 | Y77: 2672426.348
Q78: 855 | R78: Leicestershire | S78: 709069.4682 | T78: 709069.4682 | U78: 709069.4682 | V78: 2127208.405 | W78: 494699.629 | X78: 989399.258 | Y78: 3611307.292
Q79: 209 | R79: Lewisham | S79: 773332.7744 | T79: 773332.7744 | U79: 773332.7744 | V79: 2319998.323 | W79: 539534.4938 | X79: 1079068.988 | Y79: 3938601.804
Q80: 925 | R80: Lincolnshire | S80: 771411.5047 | T80: 771411.5047 | U80: 771411.5047 | V80: 2314234.514 | W80: 538194.0731 | X80: 1076388.146 | Y80: 3928816.733
Q81: 341 | R81: Liverpool | S81: 514481.826 | T81: 514481.826 | U81: 514481.826 | V81: 1543445.478 | W81: 358940.8088 | X81: 717881.6176 | Y81: 2620267.904
Q82: 821 | R82: Luton | S82: 429455.2694 | T82: 429455.2694 | U82: 429455.2694 | V82: 1288365.808 | W82: 299619.9554 | X82: 599239.9108 | Y82: 2187225.674
Q83: 352 | R83: Manchester | S83: 831145.0975 | T83: 831145.0975 | U83: 831145.0975 | V83: 2493435.292 | W83: 579868.6726 | X83: 1159737.345 | Y83: 4233041.31
Q84: 887 | R84: Medway | S84: 459324.7483 | T84: 459324.7483 | U84: 459324.7483 | V84: 1377974.245 | W84: 320459.1267 | X84: 640918.2535 | Y84: 2339351.625
Q85: 315 | R85: Merton | S85: 491430.2411 | T85: 491430.2411 | U85: 491430.2411 | V85: 1474290.723 | W85: 342858.3078 | X85: 685716.6155 | Y85: 2502865.647
Q86: 806 | R86: Middlesbrough | S86: 166666.6667 | T86: 166666.6667 | U86: 166666.6667 | V86: 500000 | W86: 116279.0698 | X86: 232558.1395 | Y86: 848837.2093
Q87: 826 | R87: Milton Keynes | S87: 635366.0805 | T87: 635366.0805 | U87: 635366.0805 | V87: 1906098.242 | W87: 443278.6608 | X87: 886557.3217 | Y87: 3235934.224
Q88: 391 | R88: Newcastle upon Tyne | S88: 314415.2338 | T88: 314415.2338 | U88: 314415.2338 | V88: 943245.7014 | W88: 219359.4654 | X88: 438718.9309 | Y88: 1601324.098
Q89: 316 | R89: Newham | S89: 746759.7122 | T89: 746759.7122 | U89: 746759.7122 | V89: 2240279.137 | W89: 520995.148 | X89: 1041990.296 | Y89: 3803264.581
Q90: 926 | R90: Norfolk | S90: 908832.4411 | T90: 908832.4411 | U90: 908832.4411 | V90: 2726497.323 | W90: 634069.145 | X90: 1268138.29 | Y90: 4628704.758
Q91: 812 | R91: North East Lincolnshire | S91: 166666.6667 | T91: 166666.6667 | U91: 166666.6667 | V91: 500000 | W91: 116279.0698 | X91: 232558.1395 | Y91: 848837.2093
Q92: 813 | R92: North Lincolnshire | S92: 166666.6667 | T92: 166666.6667 | U92: 166666.6667 | V92: 500000 | W92: 116279.0698 | X92: 232558.1395 | Y92: 848837.2093
Q93: 802 | R93: North Somerset | S93: 260161.2749 | T93: 260161.2749 | U93: 260161.2749 | V93: 780483.8246 | W93: 181507.8662 | X93: 363015.7324 | Y93: 1325007.423
Q94: 392 | R94: North Tyneside | S94: 166666.6667 | T94: 166666.6667 | U94: 166666.6667 | V94: 500000 | W94: 116279.0698 | X94: 232558.1395 | Y94: 848837.2093
Q95: 815 | R95: North Yorkshire | S95: 166666.6667 | T95: 166666.6667 | U95: 166666.6667 | V95: 500000 | W95: 116279.0698 | X95: 232558.1395 | Y95: 848837.2093
Q96: 928 | R96: Northamptonshire | S96: 940580.9489 | T96: 940580.9489 | U96: 940580.9489 | V96: 2821742.847 | W96: 656219.2666 | X96: 1312438.533 | Y96: 4790400.647
Q97: 929 | R97: Northumberland | S97: 166666.6667 | T97: 166666.6667 | U97: 166666.6667 | V97: 500000 | W97: 116279.0698 | X97: 232558.1395 | Y97: 848837.2093
Q98: 892 | R98: Nottingham | S98: 419658.0305 | T98: 419658.0305 | U98: 419658.0305 | V98: 1258974.092 | W98: 292784.6724 | X98: 585569.3449 | Y98: 2137328.109
Q99: 891 | R99: Nottinghamshire | S99: 848600.7784 | T99: 848600.7784 | U99: 848600.7784 | V99: 2545802.335 | W99: 592047.0547 | X99: 1184094.109 | Y99: 4321943.499
Q100: 353 | R100: Oldham | S100: 166666.6667 | T100: 166666.6667 | U100: 166666.6667 | V100: 500000 | W100: 116279.0698 | X100: 232558.1395 | Y100: 848837.2093
Q101: 931 | R101: Oxfordshire | S101: 818155.2657 | T101: 818155.2657 | U101: 818155.2657 | V101: 2454465.797 | W101: 570805.9993 | X101: 1141611.999 | Y101: 4166883.795
Q102: 874 | R102: Peterborough | S102: 368245.1243 | T102: 368245.1243 | U102: 368245.1243 | V102: 1104735.373 | W102: 256915.203 | X102: 513830.4059 | Y102: 1875480.982
Q103: 879 | R103: Plymouth | S103: 254566.5311 | T103: 254566.5311 | U103: 254566.5311 | V103: 763699.5932 | W103: 177604.5566 | X103: 355209.1131 | Y103: 1296513.263
Q104: 836 | R104: Poole | S104: 167549.3123 | T104: 167549.3123 | U104: 167549.3123 | V104: 502647.9369 | W104: 116894.869 | X104: 233789.7381 | Y104: 853332.544
Q105: 851 | R105: Portsmouth | S105: 256869.443 | T105: 256869.443 | U105: 256869.443 | V105: 770608.3291 | W105: 179211.2393 | X105: 358422.4787 | Y105: 1308242.047
Q106: 870 | R106: Reading | S106: 273709.809 | T106: 273709.809 | U106: 273709.809 | V106: 821129.427 | W106: 190960.3319 | X106: 381920.6637 | Y106: 1394010.423
Q107: 317 | R107: Redbridge | S107: 984636.0042 | T107: 984636.0042 | U107: 984636.0042 | V107: 2953908.013 | W107: 686955.3518 | X107: 1373910.704 | Y107: 5014774.068
Q108: 807 | R108: Redcar and Cleveland | S108: 166666.6667 | T108: 166666.6667 | U108: 166666.6667 | V108: 500000 | W108: 116279.0698 | X108: 232558.1395 | Y108: 848837.2093
Q109: 318 | R109: Richmond upon Thames | S109: 531957.0437 | T109: 531957.0437 | U109: 531957.0437 | V109: 1595871.131 | W109: 371132.8212 | X109: 742265.6424 | Y109: 2709269.595
Q110: 354 | R110: Rochdale | S110: 166666.6667 | T110: 166666.6667 | U110: 166666.6667 | V110: 500000 | W110: 116279.0698 | X110: 232558.1395 | Y110: 848837.2093
Q111: 372 | R111: Rotherham | S111: 166666.6667 | T111: 166666.6667 | U111: 166666.6667 | V111: 500000 | W111: 116279.0698 | X111: 232558.1395 | Y111: 848837.2093
Q112: 857 | R112: Rutland | S112: 166666.6667 | T112: 166666.6667 | U112: 166666.6667 | V112: 500000 | W112: 116279.0698 | X112: 232558.1395 | Y112: 848837.2093
Q113: 355 | R113: Salford | S113: 421362.9905 | T113: 421362.9905 | U113: 421362.9905 | V113: 1264088.972 | W113: 293974.1794 | X113: 587948.3588 | Y113: 2146011.51
Q114: 333 | R114: Sandwell | S114: 521462.0172 | T114: 521462.0172 | U114: 521462.0172 | V114: 1564386.051 | W114: 363810.7096 | X114: 727621.4193 | Y114: 2655818.18
Q115: 343 | R115: Sefton | S115: 166666.6667 | T115: 166666.6667 | U115: 166666.6667 | V115: 500000 | W115: 116279.0698 | X115: 232558.1395 | Y115: 848837.2093
Q116: 373 | R116: Sheffield | S116: 496094.4105 | T116: 496094.4105 | U116: 496094.4105 | V116: 1488283.232 | W116: 346112.3794 | X116: 692224.7589 | Y116: 2526620.37
Q117: 893 | R117: Shropshire | S117: 166666.6667 | T117: 166666.6667 | U117: 166666.6667 | V117: 500000 | W117: 116279.0698 | X117: 232558.1395 | Y117: 848837.2093
Q118: 871 | R118: Slough | S118: 342268.4925 | T118: 342268.4925 | U118: 342268.4925 | V118: 1026805.478 | W118: 238791.9715 | X118: 477583.9431 | Y118: 1743181.392
Q119: 334 | R119: Solihull | S119: 278493.564 | T119: 278493.564 | U119: 278493.564 | V119: 835480.6919 | W119: 194297.8353 | X119: 388595.6707 | Y119: 1418374.198
Q120: 933 | R120: Somerset | S120: 572131.2645 | T120: 572131.2645 | U120: 572131.2645 | V120: 1716393.793 | W120: 399161.3473 | X120: 798322.6946 | Y120: 2913877.835
Q121: 803 | R121: South Gloucestershire | S121: 398353.8688 | T121: 398353.8688 | U121: 398353.8688 | V121: 1195061.607 | W121: 277921.3038 | X121: 555842.6077 | Y121: 2028825.518
Q122: 393 | R122: South Tyneside | S122: 166666.6667 | T122: 166666.6667 | U122: 166666.6667 | V122: 500000 | W122: 116279.0698 | X122: 232558.1395 | Y122: 848837.2093
Q123: 852 | R123: Southampton | S123: 408457.4364 | T123: 408457.4364 | U123: 408457.4364 | V123: 1225372.309 | W123: 284970.3045 | X123: 569940.609 | Y123: 2080283.223
Q124: 882 | R124: Southend-on-Sea | S124: 230167.4031 | T124: 230167.4031 | U124: 230167.4031 | V124: 690502.2092 | W124: 160581.9091 | X124: 321163.8182 | Y124: 1172247.937
Q125: 210 | R125: Southwark | S125: 549624.9719 | T125: 549624.9719 | U125: 549624.9719 | V125: 1648874.916 | W125: 383459.2828 | X125: 766918.5655 | Y125: 2799252.764
Q126: 342 | R126: St Helens | S126: 166666.6667 | T126: 166666.6667 | U126: 166666.6667 | V126: 500000 | W126: 116279.0698 | X126: 232558.1395 | Y126: 848837.2093
Q127: 860 | R127: Staffordshire | S127: 311412.4585 | T127: 311412.4585 | U127: 311412.4585 | V127: 934237.3756 | W127: 217264.506 | X127: 434529.0119 | Y127: 1586030.893
Q128: 356 | R128: Stockport | S128: 321930.7969 | T128: 321930.7969 | U128: 321930.7969 | V128: 965792.3907 | W128: 224602.8816 | X128: 449205.7631 | Y128: 1639601.035
Q129: 808 | R129: Stockton-on-Tees | S129: 206434.5077 | T129: 206434.5077 | U129: 206434.5077 | V129: 619303.5231 | W129: 144024.0751 | X129: 288048.1503 | Y129: 1051375.749
Q130: 861 | R130: Stoke-on-Trent | S130: 226043.867 | T130: 226043.867 | U130: 226043.867 | V130: 678131.6009 | W130: 157705.0235 | X130: 315410.0469 | Y130: 1151246.671
Q131: 935 | R131: Suffolk | S131: 461375.7685 | T131: 461375.7685 | U131: 461375.7685 | V131: 1384127.306 | W131: 321890.0711 | X131: 643780.1421 | Y131: 2349797.519
Q132: 394 | R132: Sunderland | S132: 166666.6667 | T132: 166666.6667 | U132: 166666.6667 | V132: 500000 | W132: 116279.0698 | X132: 232558.1395 | Y132: 848837.2093
Q133: 936 | R133: Surrey | S133: 1976696.433 | T133: 1976696.433 | U133: 1976696.433 | V133: 5930089.299 | W133: 1379090.535 | X133: 2758181.069 | Y133: 10067360.9
Q134: 319 | R134: Sutton | S134: 616523.9348 | T134: 616523.9348 | U134: 616523.9348 | V134: 1849571.805 | W134: 430132.9778 | X134: 860265.9556 | Y134: 3139970.738
Q135: 866 | R135: Swindon | S135: 325873.1867 | T135: 325873.1867 | U135: 325873.1867 | V135: 977619.56 | W135: 227353.3861 | X135: 454706.7721 | Y135: 1659679.718
Q136: 357 | R136: Tameside | S136: 211253.9412 | T136: 211253.9412 | U136: 211253.9412 | V136: 633761.8235 | W136: 147386.4706 | X136: 294772.9412 | Y136: 1075921.235
Q137: 894 | R137: Telford and Wrekin | S137: 166666.6667 | T137: 166666.6667 | U137: 166666.6667 | V137: 500000 | W137: 116279.0698 | X137: 232558.1395 | Y137: 848837.2093
Q138: 883 | R138: Thurrock | S138: 357094.3915 | T138: 357094.3915 | U138: 357094.3915 | V138: 1071283.174 | W138: =V138*(50/215) -> 249135.622 | X138: =V138*(100/215) -> 498271.2439 | Y138: =V138+W138+X138 -> 1818690.04
Q139: 880 | R139: Torbay | S139: 166666.6667 | T139: 166666.6667 | U139: 166666.6667 | V139: 500000 | W139: 116279.0698 | X139: 232558.1395 | Y139: 848837.2093
Q140: 211 | R140: Tower Hamlets | S140: 1181119.829 | T140: 1181119.829 | U140: 1181119.829 | V140: 3543359.486 | W140: 824037.0899 | X140: 1648074.18 | Y140: 6015470.756
Q141: 358 | R141: Trafford | S141: 344138.2886 | T141: 344138.2886 | U141: 344138.2886 | V141: 1032414.866 | W141: 240096.4804 | X141: 480192.9608 | Y141: 1752704.307
Q142: 384 | R142: Wakefield | S142: 302487.5673 | T142: 302487.5673 | U142: 302487.5673 | V142: 907462.7018 | W142: 211037.8376 | X142: 422075.6752 | Y142: 1540576.215
Q143: 335 | R143: Walsall | S143: 319228.5905 | T143: 319228.5905 | U143: 319228.5905 | V143: 957685.7715 | W143: 222717.6213 | X143: 445435.2426 | Y143: 1625838.635
Q144: 320 | R144: Waltham Forest | S144: 518794.9388 | T144: 518794.9388 | U144: 518794.9388 | V144: 1556384.816 | W144: 361949.9573 | X144: 723899.9146 | Y144: 2642234.688
Q145: 212 | R145: Wandsworth | S145: 634235.088 | T145: 634235.088 | U145: 634235.088 | V145: 1902705.264 | W145: 442489.5963 | X145: 884979.1925 | Y145: 3230174.053
Q146: 877 | R146: Warrington | S146: 173309.3443 | T146: 173309.3443 | U146: 173309.3443 | V146: 519928.033 | W146: 120913.496 | X146: 241826.9921 | Y146: 882668.5211
Q147: 937 | R147: Warwickshire | S147: 424524.184 | T147: 424524.184 | U147: 424524.184 | V147: 1273572.552 | W147: 296179.6633 | X147: 592359.3266 | Y147: 2162111.542
Q148: 869 | R148: West Berkshire | S148: 166666.6667 | T148: 166666.6667 | U148: 166666.6667 | V148: 500000 | W148: 116279.0698 | X148: 232558.1395 | Y148: 848837.2093
Q149: 938 | R149: West Sussex | S149: 1085113.901 | T149: 1085113.901 | U149: 1085113.901 | V149: 3255341.702 | W149: 757056.2098 | X149: 1514112.42 | Y149: 5526510.332
Q150: 213 | R150: Westminster | S150: 479801.3588 | T150: 479801.3588 | U150: 479801.3588 | V150: 1439404.076 | W150: 334745.134 | X150: 669490.2681 | Y150: 2443639.478
Q151: 359 | R151: Wigan | S151: 166666.6667 | T151: 166666.6667 | U151: 166666.6667 | V151: 500000 | W151: 116279.0698 | X151: 232558.1395 | Y151: 848837.2093
Q152: 865 | R152: Wiltshire | S152: 266977.564 | T152: 266977.564 | U152: 266977.564 | V152: 800932.6921 | W152: 186263.4168 | X152: 372526.8335 | Y152: 1359722.942
Q153: 868 | R153: Windsor and Maidenhead | S153: 240923.8785 | T153: 240923.8785 | U153: 240923.8785 | V153: 722771.6355 | W153: 168086.4269 | X153: 336172.8537 | Y153: 1227030.916
Q154: 344 | R154: Wirral | S154: 166666.6667 | T154: 166666.6667 | U154: 166666.6667 | V154: 500000 | W154: 116279.0698 | X154: 232558.1395 | Y154: 848837.2093
Q155: 872 | R155: Wokingham | S155: 265760.3775 | T155: 265760.3775 | U155: 265760.3775 | V155: 797281.1325 | W155: 185414.2169 | X155: 370828.4337 | Y155: 1353523.783
Q156: 336 | R156: Wolverhampton | S156: 386190.2632 | T156: 386190.2632 | U156: 386190.2632 | V156: 1158570.79 | W156: 269435.0673 | X156: 538870.1347 | Y156: 1966875.992
Q157: 885 | R157: Worcestershire | S157: 361888.1688 | T157: 361888.1688 | U157: 361888.1688 | V157: 1085664.506 | W157: 252480.1177 | X157: 504960.2355 | Y157: 1843104.86
Q158: 816 | R158: York | S158: 196926.2716 | T158: 196926.2716 | U158: 196926.2716 | V158: 590778.8149 | W158: 137390.4221 | X158: 274780.8441 | Y158: 1002950.081
Q159: 900 | R159: Example LA | S159: =T159/3 -> 36851.85185 | T159: =U159/3 -> 110555.5556 | U159: =V159/3 -> 331666.6667 | V159: 995000
